Cogmind - Beta 15 @@@ ROGUE MODE // 2025.07.19 @ 10:44:26 Player: shapeshifter Result: Destroyed by G-50 Soldier with Heavy Laser Performance ------------- Evolutions (5) 2500 Regions Visited (5) 1000 Robots Destroyed (27) 135 Value Destroyed (920) 920 Prototype IDs (0) 0 Alien Tech Used (0) 0 Bonus (500) 500 TOTAL SCORE: 5055 Bonus ------- Entered Garrisons 200 Registered with UFD 300 Cogmind --------- Core Integrity 0/1000 Matter 112/550 Energy 19/100 System Corruption 6% Temperature Cool (9) Movement Core (450) Ox8 Location -5/Garrison Parts ------- > --- POWER (2) -------- (None) > --- PROPULSION (5) --- (None) > --- UTILITY (6) ------ Large Storage Unit Matter Compressor A0-MCA's Component Scanner > --- WEAPON (4) ------- (None) > --- INVENTORY (15) --- Advanced Heat Sink Improved Remote Datajack Botcube Peak State ------------ > --- POWER ------------ Improved Deuterium Engine Improved Deuterium Engine > --- PROPULSION ------- Light Treads Light Treads Armored Treads > --- UTILITY ---------- Scrap Suit Large Storage Unit Advanced Sensor Array Point Defense System A0-MCA's Component Scanner > --- WEAPON ----------- Tesla Rifle Heavy Plasma Cannon Advanced Plasma Cannon Heavy Machine Gun > --- INVENTORY -------- VTOL Module VTOL Module VTOL Module VTOL Module Matter Compressor Force Field Force Field Advanced Plasma Cannon Gauss Cannon Mass Driver Improved Remote Datajack Botcube [Rating: 69] Favorites ----------- Power Improved Deuterium Engine Engine Improved Deuterium Engine Propulsion Light Treads Treads Light Treads Leg Aluminum Leg Flight Unit VTOL Module Utility Large Storage Unit Device Scrap Suit Storage Large Storage Unit Processor A0-MCA's Component Scanner Weapon Assault Rifle Energy Gun Tesla Rifle Energy Cannon Heavy Plasma Cannon Ballistic Gun Assault Rifle Ballistic Cannon Gauss Cannon Launcher Grenade Launcher Build | -11 -10 -10 -7 -5 -5 ------- Run | Yrd Mat Sub Scr Fac Gar Slots Evolved 10 | . . . . 10 . Power 1 | . . . . 1 . Propulsion 3 | . . . . 3 . Utility 4 | . . . . 4 . Weapon 2 | . . . . 2 . Parts Attached 34 | 8 5 . 1 14 6 Power 4 | 1 1 . 1 1 . Engine 4 | 1 1 . 1 1 . Core . | . . . . . . Reactor . | . . . . . . Propulsion 9 | 3 1 . . 4 1 Treads 3 | 1 1 . . 1 . Leg 3 | 2 . . . . 1 Wheel . | . . . . . . Hover . | . . . . . . Flight 3 | . . . . 3 . Utility 10 | 2 1 . . 4 3 Device 6 | 1 . . . 3 2 Storage 3 | 1 1 . . . 1 Processor 1 | . . . . 1 . Hackware . | . . . . . . Protection . | . . . . . . Artifact . | . . . . . . Weapon 11 | 2 2 . . 5 2 Energy Gun 1 | . . . . 1 . Energy Cannon 3 | . . . . 2 1 Ballistic Gun 4 | 2 1 . . 1 . Ballistic Cannon 2 | . . . . 1 1 Launcher 1 | . 1 . . . . Special Weapon . | . . . . . . Impact Weapon . | . . . . . . Slashing Weapon . | . . . . . . Piercing Weapon . | . . . . . . Special Melee Weapon . | . . . . . . Unidentified Prototypes . | . . . . . . Parts Lost 19 | . . 1 . . 18 Power 2 | . . . . . 2 Propulsion 4 | . . . . . 4 Utility 6 | . . 1 . . 5 Weapon 7 | . . . . . 7 Highest Loss Streak 13 | . . 1 . . 13 To Critical Strikes . | . . . . . . Average Backups 9 | 3 5 9 10 7 7 Power . | . 1 1 1 . . Propulsion 4 | 1 1 4 4 4 1 Utility 1 | . . 1 1 . 3 Weapon 3 | . 2 3 4 2 1 Tool/Special . | . . . . . . Unused Backups 7 | . . . 2 2 3 Power 1 | . . . 1 . . Propulsion 1 | . . . . . 1 Utility 3 | . . . 1 1 1 Weapon 1 | . . . . 1 . Tool/Special 1 | . . . . . 1 Average Slot Usage (%) 83 | . 100 99 85 77 65 Engine 12 | . 14 14 14 10 4 Treads 23 | . 26 28 28 16 6 Device 7 | . 14 13 . 13 16 Storage 10 | . 14 14 14 5 5 Processor 1 | . . . . 4 5 Energy Cannon 3 | . . . . 8 10 Ballistic Gun 11 | . 22 14 14 7 1 Launcher 8 | . 5 14 14 1 . Peak Build Rating 69 | 7 8 8 14 69 69 Average Rating 27 | 4 7 7 11 58 58 On Entrance 17 | . 7 8 7 14 69 Naked Turns . | . . . . . . Heaviest Build 78 | 12 29 29 35 78 76 Greatest Support 60 | 20 40 40 40 60 60 Greatest Overweight (x) 4 | . . . . 2 4 Average Overweight (x) . | . . . . 1 2 Largest Inventory Capacity 15 | 8 15 15 15 15 15 Average Capacity 14 | 7 14 15 15 15 15 Most Carried 15 | 5 9 9 15 15 14 Average Carried 9 | 3 5 9 11 8 8 Final Capacity 15 | 8 15 15 15 15 15 Final Carried 15 | 4 9 9 15 12 3 Class Distribution -------------------- 65% | Mutant 28% | Skirmisher 5% | Gunner Dominant Class ---------------- Mutant | -10/Materials Mutant | -10/Subcaves Mutant | -7/Scraptown Skirmisher | -5/Factory Skirmisher | -5/Garrison Resources | -11 -10 -10 -7 -5 -5 ----------- Run | Yrd Mat Sub Scr Fac Gar Matter Collected 779 | 200 125 . 161 245 48 Remotely . | . . . . . . Salvage Created 940 | 73 203 . . 376 288 Parts 56 | 11 15 . . 22 8 Haulers Intercepted . | . . . . . . Recyclers Shooed . | . . . . . . Parts Field Recycled . | . . . . . . Retrieved Matter . | . . . . . . Parts Self-Destructed 1 | . . 1 . . . Prevented . | . . . . . . Kills | -11 -10 -10 -7 -5 -5 ------- Run | Yrd Mat Sub Scr Fac Gar Combat Hostiles Destroyed 18 | . 3 . . 8 7 Guns 7 | . 3 . . 2 2 Cannons 8 | . . . . 3 5 AOE 3 | . . . . 3 . Classes Destroyed 9 | 1 3 . . 4 1 Builder 1 | . 1 . . . . Tunneler 3 | 3 . . . . . Recycler 2 | . 2 . . . . Operator 1 | . . . . 1 . Watcher 2 | . . . . 2 . Swarmer 9 | . 3 . . 4 2 Grunt 5 | . . . . . 5 Hunter 1 | . . . . 1 . Programmer 3 | . . . . 3 . Best Kill Streak 5 | 3 4 . . 4 5 Combat Bots Only 5 | . 3 . . 4 5 Max Kills in Single Turn 3 | 1 1 . . 3 1 Gunslinging . | . . . . . . Exploded 3 | . . . . 3 . Melee . | . . . . . . Uniques/NPCs Destroyed . | . . . . . . Combat | -11 -10 -10 -7 -5 -5 -------- Run | Yrd Mat Sub Scr Fac Gar Hostile Shots Fired 298 | . 26 . . 50 222 Missed 79 | . 5 . . 16 58 Hits 219 | . 21 . . 34 164 Projectile 219 | . 21 . . 34 164 Critical Strikes 3 | . . . . 1 2 Part Disruptions 1 | . . . . 1 . Damage Taken 3619 | . 180 95 . 634 2710 Core 1039 | . 33 6 . 127 873 Absorbed by Shields 10 | . . . . . 10 Regen/Repaired (Parts) 31 | . . . . 21 10 Core Remaining (%) 92 | 100 . . 84 . . Volleys Fired 54 | 7 15 1 . 14 17 Largest 4 | 2 2 2 . 4 4 Hottest 283 | 40 50 50 . 283 283 Shots Fired 141 | 14 29 2 . 54 42 Gun 76 | 14 26 1 . 24 11 Cannon 61 | . . . . 30 31 Launcher 4 | . 3 1 . . . Special . | . . . . . . Kinetic 85 | 14 26 1 . 18 26 Thermal 39 | . . . . 26 13 Explosive 4 | . 3 1 . . . Electromagnetic 13 | . . . . 10 3 Robot Hit Streak 10 | 3 5 . . 10 6 Robot Miss Streak 6 | 1 3 . . 6 4 Penetration Max . | . . . . . . Secondary Targets . | . . . . . . Shots Hit Robots 68 | 7 15 . . 23 23 Core Hits 36 | 4 6 . . 14 12 Critical Kills 1 | . . . . 1 . Critical Parts Destroyed . | . . . . . . Critical Strikes 2 | . . . . 1 1 Destroy 1 | . . . . 1 . Blast 1 | . . . . . 1 Melee Attacks . | . . . . . . Impact . | . . . . . . Slashing . | . . . . . . Piercing . | . . . . . . Sneak Attacks . | . . . . . . Combat Hostiles . | . . . . . . Follow-up Attacks . | . . . . . . Damage Inflicted 2148 | 78 225 . . 1043 802 Guns 579 | 78 173 . . 222 106 Cannons 1238 | . . . . 542 696 Explosions 331 | . 52 . . 279 . Melee . | . . . . . . Ramming . | . . . . . . Kinetic 944 | 78 173 . . 204 489 Thermal 1006 | . . . . 716 290 Explosive 52 | . 52 . . . . Electromagnetic 146 | . . . . 123 23 Impact . | . . . . . . Slashing . | . . . . . . Piercing . | . . . . . . Highest Corruption 6 | . . . . 6 6 Average Corruption 3 | . . . . 2 6 Corruption Purged . | . . . . . . Corruption Blocked . | . . . . . . Effects 22 | . . . . 12 10 Message Errors 5 | . . . . 2 3 Matter Fused 4 | . . . . 4 . Heat Flow Errors 1 | . . . . 1 . Energy Discharges 3 | . . . . 3 . Parts Rejected 3 | . . . . . 3 Parts Fused 1 | . . . . 1 . Data Loss (minor) 3 | . . . . 1 2 Misfires 1 | . . . . . 1 Weapon Failures 1 | . . . . . 1 Overload Shots . | . . . . . . Overflow Damage 123 | . 16 . . 107 . Projectiles 20 | . . . . 20 . Explosions 103 | . 16 . . 87 . Melee . | . . . . . . Knockbacks 1 | . . . . . 1 Impact . | . . . . . . Kinetic 1 | . . . . . 1 Secondary . | . . . . . . Self-Inflicted Damage 19 | . . 19 . . . Shots 1 | . . 1 . . . Rammed . | . . . . . . Targets Rammed . | . . . . . . Kicked . | . . . . . . Crushed . | . . . . . . Highest Temperature 523 | . . . . 523 496 Average Temperature 175 | . . . . 174 176 Received Heat Transfer 570 | . . . . . 570 Effects 15 | . . . . 9 6 Shutdowns 6 | . . . . 5 1 Energy Bleed 2 | . . . . . 2 Interference 3 | . . . . 1 2 Matter Decay 1 | . . . . . 1 Damage (minor) 3 | . . . . 3 . Siege Activations . | . . . . . . Martial Activations . | . . . . . . Shielding Activations . | . . . . . . Robots Disrupted . | . . . . . . Combat Hostiles . | . . . . . . Robots Corrupted . | . . . . . . Combat Hostiles . | . . . . . . Parts Fried 4 | . . . . 4 . Impact Corruptions . | . . . . . . Robots Melted . | . . . . . . Combat Hostiles . | . . . . . . Parts Melted 4 | . . . . 2 2 Heat Transferred 1224 | . . . . 750 474 Parts Sabotaged . | . . . . . . Parts Stolen . | . . . . . . Parts Stripped . | . . . . . . Power Chain Reactions . | . . . . . . Alert | -11 -10 -10 -7 -5 -5 ------- Run | Yrd Mat Sub Scr Fac Gar Maximum Alert Level 1 | . . . . 1 . Low Security (%) 87 | 100 100 . . 81 100 Level 1 12 | . . . . 18 . Level 2 . | . . . . . . Level 3 . | . . . . . . Level 4 . | . . . . . . Level 5 . | . . . . . . High Security . | . . . . . . Max Security . | . . . . . . Peak Influence 246 | 10 79 . . 246 185 Initial 145 | . . . . . 145 Average 61 | 1 37 . . 51 139 Influence Increases 705 | 15 133 . . 400 157 Destroy 0b10 Robot/C 360 | . 60 . . 160 140 Destroy 0b10 Robot/NC 45 | 15 15 . . 15 . Destroy Leader 54 | . 10 . . 44 . Successful Hack 55 | . 18 . . 37 . Disable Machine 135 | . 30 . . 90 15 Destroy Structure 56 | . . . . 54 2 Influence Decreases 583 | 15 90 43 . 192 243 Entered New Map 85 | . . 22 . . 63 Time Decay 318 | 15 90 21 . 192 . Lost Part 180 | . . . . . 180 Squads Dispatched 5 | . 1 . . 4 . Investigation 2 | . 1 . . 1 . Extermination 3 | . . . . 3 . Reinforcement . | . . . . . . Assault . | . . . . . . Garrison . | . . . . . . Intercept . | . . . . . . Searches Triggered . | . . . . . . Construction Impeded . | . . . . . . Haulers Reinforced . | . . . . . . Active Scanning Responses . | . . . . . . Cargo Convoy Interrupts . | . . . . . . Stealth | -11 -10 -10 -7 -5 -5 --------- Run | Yrd Mat Sub Scr Fac Gar Distress Signals 1 | . 1 . . . . Communications Jammed . | . . . . . . Distress Signals . | . . . . . . Times Spotted 48 | . 8 . . 13 27 Peak Tracking Total 20 | . 4 . . 4 20 Tactical Retreats . | . . . . . . Traps | -11 -10 -10 -7 -5 -5 ------- Run | Yrd Mat Sub Scr Fac Gar Traps Triggered 6 | . . 1 . 3 2 Indirectly . | . . . . . . Trap Hack Attempts . | . . . . . . Triggered . | . . . . . . Disarmed . | . . . . . . Reprogrammed . | . . . . . . Reused . | . . . . . . Traps Extracted . | . . . . . . Installed . | . . . . . . Triggered . | . . . . . . Machines | -11 -10 -10 -7 -5 -5 ---------- Run | Yrd Mat Sub Scr Fac Gar Machines Disabled 9 | . 2 . . 6 1 Max in Single Turn 5 | . 1 . . 5 1 Machines Repaired . | . . . . . . Machines Dismantled . | . . . . . . Machines Sabotaged . | . . . . . . Overloaded Fab Kills . | . . . . . . Hacking | -11 -10 -10 -7 -5 -5 --------- Run | Yrd Mat Sub Scr Fac Gar Machines Accessed 7 | . 2 . 1 4 . Terminals 5 | . 2 . . 3 . Fabricators . | . . . . . . Repair Stations . | . . . . . . Recycling Units . | . . . . . . Scanalyzers . | . . . . . . Garrison Access 1 | . . . . 1 . Total Hacks 19 | . 8 . 3 8 . Successful 10 | . 3 . 3 4 . Failed 9 | . 5 . . 4 . Catastrophic 1 | . . . . 1 . Database Lockouts . | . . . . . . Manual . | . . . . . . Terminals 14 | . 8 . . 6 . Fabricators . | . . . . . . Repair Stations . | . . . . . . Recycling Units . | . . . . . . Scanalyzers . | . . . . . . Garrison Access 2 | . . . . 2 . Terminal Hacks 9 | . 3 . 3 3 . Record 4 | . . . 3 1 . Open DSF 1 | . . . . 1 . Terminal Index 1 | . . . . 1 . Locate Traps 1 | . 1 . . . . Zone Layout 2 | . 2 . . . . Fabricator Hacks . | . . . . . . Repair Station Hacks . | . . . . . . Recycling Unit Hacks . | . . . . . . Scanalyzer . | . . . . . . Garrison Access Hacks 1 | . . . . 1 . Unlock Access 1 | . . . . 1 . Unauthorized Hacks . | . . . . . . Terminals . | . . . . . . Fabricators . | . . . . . . Repair Stations . | . . . . . . Recycling Units . | . . . . . . Scanalyzers . | . . . . . . Garrison Access . | . . . . . . Data Cores Recovered 1 | . . . . 1 . Used . | . . . . . . Hacking Detections 5 | . 2 . . 3 . Full Trace Events 3 | . 2 . . 1 . Feedback Events . | . . . . . . Feedback Blocked . | . . . . . . Robot Schematics Acquired . | . . . . . . Robots Built . | . . . . . . Authchips . | . . . . . . Time . | . . . . . . Total Robot Build Rating . | . . . . . . Part Schematics Acquired . | . . . . . . Parts Built . | . . . . . . Authchips . | . . . . . . Time . | . . . . . . Total Part Build Rating . | . . . . . . Parts Repaired . | . . . . . . Time . | . . . . . . Parts Recycled . | . . . . . . Recycled Matter . | . . . . . . Retrieved Matter . | . . . . . . Retrieved Components . | . . . . . . Parts Scanalyzed . | . . . . . . Part Schematics Acquired . | . . . . . . Parts Damaged . | . . . . . . Bothacking | -11 -10 -10 -7 -5 -5 ------------ Run | Yrd Mat Sub Scr Fac Gar Used RIF Installer . | . . . . . . Robots Hacked . | . . . . . . Non-combat . | . . . . . . Combat . | . . . . . . Robot Hacks Applied . | . . . . . . Relay Couplers Released . | . . . . . . Fabnet Peak Effective % . | . . . . . . Robots Rewired . | . . . . . . Allies Hacked . | . . . . . . Hacks Repelled . | . . . . . . Allies | -11 -10 -10 -7 -5 -5 -------- Run | Yrd Mat Sub Scr Fac Gar Total Allies . | . . . . . . Largest Group . | . . . . . . Highest-Rated Group . | . . . . . . Highest-Rated Ally . | . . . . . . Total Orders . | . . . . . . Ally Attacks . | . . . . . . Total Damage . | . . . . . . Kills . | . . . . . . Allies Corrupted . | . . . . . . Allies Melted . | . . . . . . Intel | -11 -10 -10 -7 -5 -5 ------- Run | Yrd Mat Sub Scr Fac Gar Active Infowar (turns) 1938 | 8 257 467 . 993 213 Sensors 1206 | . . . . 993 213 Seismic 732 | 8 257 467 . . . Robot Analysis Total . | . . . . . . Derelict Logs Recovered . | . . . . . . Drone Launches . | . . . . . . Drone Recoveries . | . . . . . . Exploration | -11 -10 -10 -7 -5 -5 ------------- Run | Yrd Mat Sub Scr Fac Gar Turns Passed 4405 | 88 257 489 2021 1246 304 Spaces Moved 2236 | 49 123 299 1257 451 57 Core 13 | 13 . . . . . Treads 2151 | . 117 299 1257 451 27 Legs 72 | 36 6 . . . 30 Wheels . | . . . . . . Hover . | . . . . . . Flight . | . . . . . . Fastest Speed 50 | 50 120 160 160 163 243 Average Speed 180 | 101 158 160 160 244 332 Slowest Speed 400 | 120 160 160 160 320 400 Overloaded Moves . | . . . . . . Propulsion Burnouts . | . . . . . . Robots Hopped . | . . . . . . Potential Cave-ins . | . . . . . . Cave-ins Triggered . | . . . . . . Exploration Rate (%) 26 | 3 22 22 85 9 18 Regions Visited 5 Branch Regions 2 Pre-discovered Areas . | . . . . . . Known Exits Taken 1 | . . . . 1 . Unknown Exits Taken 4 | 1 1 1 1 . . Scrap Searched 3 | . . . 3 . . Spaces Dug . | . . . . . . Terrain Destroyed 32 | . . 7 . 24 1 Melee . | . . . . . . Projectile 9 | . . . . 8 1 AOE 23 | . . 7 . 16 . Terrain Rammed . | . . . . . . Walls Destroyed . | . . . . . . Machines Disabled . | . . . . . . Actions | -11 -10 -10 -7 -5 -5 --------- Run | Yrd Mat Sub Scr Fac Gar Total 2510 | 75 157 306 1268 565 139 Wait 102 | . . 7 . 57 38 Move 2231 | 48 122 298 1256 450 57 Hop . | . . . . . . Pick Up 47 | 11 9 . 8 15 4 Fast Attach . | . . . . . . Attach 33 | 8 . . . 17 8 Detach 6 | 1 . . . 5 . Swap 10 | . 7 . 1 2 . Drop 17 | . 4 . 3 5 5 Fire 54 | 7 15 1 . 14 17 Melee . | . . . . . . Ram . | . . . . . . Kick . | . . . . . . Crush . | . . . . . . Escape Stasis 10 | . . . . . 10 Rewire . | . . . . . . Trap . | . . . . . . Miscellaneous . | . . . . . . Route ------- -11/Scrapyard -10/Materials -10/Subcaves -7/Scraptown (discovered 2 exits: *Fac x2) -5/Factory -5/Garrison History --------- Turn | Location | Event 8 | -11/Scrapyard | Discovered new exit (range 16) 89 | -11/Scrapyard | Entered Materials 237 | -10/Materials | Discovered new exit (range 7) 302 | -10/Materials | Build established: Mutant 346 | -10/Materials | Entered Subcaves 347 | -10/Subcaves | Approached by a straggling Scientist 758 | -10/Subcaves | Shifting Twisted Machinery released Sub. Beam Cannon 769 | -10/Subcaves | Shifting Twisted Machinery released Sub. Laser 831 | -10/Subcaves | Scientist uncovered a shortcut to Scraptown 835 | -10/Subcaves | Entered Scraptown 1308 | -7/Scraptown | Discovered new exit (range 11) 1482 | -7/Scraptown | Visited Fellowship of the Rings 1519 | -7/Scraptown | Visited SPCMW 1556 | -7/Scraptown | Visited Cyclists 1593 | -7/Scraptown | Visited CPS Storage 1836 | -7/Scraptown | Visited UFD Registry 1836 | -7/Scraptown | Registered with UFD as "Wrenchfunk" 1878 | -7/Scraptown | Visited Chapter 10 1922 | -7/Scraptown | Visited A0-MCA Data Center 1932 | -7/Scraptown | Given a B+ rating by A0-MCA 1934 | -7/Scraptown | Found A0-MCA's Component Scanner 1963 | -7/Scraptown | Visited Curators Association 2135 | -7/Scraptown | Visited Botcube Research 2146 | -7/Scraptown | Found Botcube 2192 | -7/Scraptown | Visited Analyses Database 2212 | -7/Scraptown | Visited DA-N13 Charitable Foundation 2240 | -7/Scraptown | Visited Scrap Suit Storage 2246 | -7/Scraptown | Found Scrap Suit 2402 | -7/Scraptown | Visited Junk Repository 2546 | -7/Scraptown | Discovered new exit (range 5) 2856 | -7/Scraptown | Entered Factory 2856 | -5/Factory | Evolved 10 slots: Power x1, Propulsion x3, Utility x4, Weapon x2 3576 | -5/Factory | Build established: Skirmisher 4040 | -5/Factory | Identified exit to Garrison 4102 | -5/Factory | Entered Garrison 4142 | -5/Garrison | Triggered checkpoint 4202 | -5/Garrison | Lost 5 parts (1p2n2w) 4358 | -5/Garrison | Triggered checkpoint 4391 | -5/Garrison | Triggered checkpoint 4399 | -5/Garrison | Core integrity fell below 50% 4403 | -5/Garrison | Core integrity fell below 20% 4406 | -5/Garrison | Destroyed by G-50 Soldier with Heavy Laser Last Messages --------------- 04394_ S-27 Virus destroyed. 04394_ Scrap Suit destroyed. 04395_ Slug penetrates Wall. 04395_ Slug penetrates S-27 Virus. 04395_ S-27 Virus destroyed. 04396_ Mass Driver destroyed. 04396_ Hvy. Laser destroyed. 04397_ Slug penetrates G-50 Soldier. 04397_ Slug penetrates Reinforced Barrier. 04397_ Hvy. Plasma Cannon destroyed. 04398_ Slug penetrates Reinforced Barrier. 04398_ Penetrated by Slug. 04402_ Force Field destroyed. 04402_ S-27 Virus destroyed. 04403_ Force Field destroyed. 04403_ Penetrated by Slug. 04404_ S-27 Virus destroyed. 04404_ Penetrated by Slug. 04406_ System corrupted: Adv. Plasma Cannon rejected. Map ----- +----------------------------------------------------+ | ?????????????????????????????????????????????????? | | ?????????????????????????????????????????????????? | | ?????????????????????????????????????????????????? | | ?????????????????????????????????????????????????? | | ?????????????????????????????????????????????????? | | ?????????????????????????????????????????????????? | | ?????????????????????????????????????????????????? | | ?????????????????????????????????????????????????? | | ????###??????????????????????????????????????????? | | ??? #??????????????????????????????????????????? | | ###% ####???????????????????????????????????????? | | ????????????????????????????????????????? | | % ????????????????????????????????????????????? | | #???????????????????????????????????????????????? | | #???????????????????????????????????????????????? | | =#???????????????????????????????????????????????? | | =#####################???????????????????????????? | | = #???????????????????????????? | | #???????????????????????????? | | #???????????????????????????? | | ################## #???????????????????????????? | | ?????????????????# #???????????????????????????? | | ?????????????????# #???????????????????????????? | | ?????????????????# #???????????????????????????? | | ?????????????????# #######?????????????????????? | | ?????????????????# ##%%@%#?????????????????????? | | ?????????????????# ##%s!%## ##????????????????? | | ?????????????????# [%%%[s #????????????????? | | ?????????????????# s s==g%[ ??????????? | | ?????????????????# ^[= * g ??????????? | | ?????????????????#s ## ;#g #######??????????? | | ?????????????????# ## h## #????????????????? | | ???????????????? ss ? ???????????????? | | ???????????????# % ? #??????????????? | | ???????????????# #??????????????? | | ???????????????# " #??????????????? | | ???????????????#?# ## ## ###??????????????? | | ?????????????????# ?#gggh#? #????????????????? | | ????????????????? ? ?? ????????????????? | | ????????????????? ? ?? ???????????????? | | ?????????????????# ? ????????????????????? | | ?????????????????## ?#""""##????????????????????? | | ?????????????????????????????????????????????????? | | ?????????????????????????????????????????????????? | | ?????????????????????????????????????????????????? | | ?????????????????????????????????????????????????? | | ?????????????????????????????????????????????????? | | ?????????????????????????????????????????????????? | | ?????????????????????????????????????????????????? | | ?????????????????????????????????????????????????? | +----------------------------------------------------+ Best States ------------- Heat Dissipation 40 Energy Generation 27 Energy Capacity 480 Matter Stores 300 Matter Capacity 550 Sight Range 16 Robot Scan Range 16 Terrain Scan Density 10 Point Defense Rating 80 Evasion (%) 50 Recoil Reduction 3 Item Schematics ----------------- None Robot Schematics ------------------ None Fabricated ------------ Nothing Repaired ---------- Nothing Alien Tech Used ----------------- None Achievements -------------- Hunted Challenges ------------ None Game ------ Seed MasterTerrabombLattice Manual? 0 Play Time 00:26:55 Cumulative 14.7 hours Start 2025.07.19 @ 10:10:14 End 2025.07.19 @ 10:44:26 Sessions 1 Manual Loads 0 Difficulty Rogue Special Mode None Game No. 42 Rogue 42 Adventurer 0 Explorer 0 Win Type - Total 0 Types 0/0/0/0/0/0/0/0/0/0 Lore% 17 Gallery% 17 Achievement% 14 Wizard Run 0 Options --------- Layout 1 ASCII 0 Keyboard 0 Movement Mouse Keybinds 0 Fullscreen 1 Font 32/Smallcaps Map View 50x35 Zoom Use 0% Tactical HUD 1 Map Filters NONE Filters NONE Steam 1 RUN: bde48157-bbac-4872-b2b3-b03d71870a75